bitfinex-derivatives/quotes_BTCF0:USTF0_20260119
["timestamp","ask_amount","ask_price","bid_price","bid_amount"]
[1768828016420,0.11739285,93004.0,92996.0,0.01076]
[1768828016620,0.11739285,93004.0,92991.0,0.00016122]
[1768828017535,0.11739285,93004.0,92996.0,0.01076]
[1768828017719,0.11739285,93004.0,92991.0,0.00016122]
[1768828018532,0.11739285,93004.0,92996.0,0.01076]
[1768828019226,0.11739285,93004.0,92991.0,0.00016122]
[1768828019426,0.11739285,93004.0,92995.0,0.01076]
[1768828019626,0.11739285,93004.0,92994.0,0.01076]
[1768828020126,0.11739285,93004.0,92991.0,0.00016122]
[1768828020428,0.21710639,93004.0,92994.0,0.01076]
[1768828020728,0.11739285,93002.0,92991.0,0.01092122]
[1768828020928,0.11739285,93002.0,92992.0,0.01076]
[1768828021822,0.11739285,93002.0,92994.0,0.01076]
[1768828022326,0.11739285,93002.0,92991.0,0.00016122]
[1768828022528,0.11739285,93002.0,92991.0,0.01092122]
[1768828023320,0.11739285,93002.0,92992.0,0.01076]
[1768828024027,0.11739285,93002.0,92995.0,0.01076]
[1768828024229,0.11739285,93002.0,92991.0,0.00016122]
[1768828024428,0.11739285,93002.0,92995.0,0.01076]
[1768828024620,0.11739285,93010.0,92999.0,0.010759]
[1768828024821,0.11739285,93010.0,92991.0,0.00016122]
[1768828025632,0.11739285,93010.0,92999.0,0.010759]
[1768828026128,0.11739285,93010.0,92991.0,0.00016122]
[1768828026333,0.09971354,93019.0,92992.0,0.01076]
[1768828026516,0.12520894,93018.0,93010.0,0.010758]
[1768828026832,0.10207852,93024.0,93015.0,0.010757]
[1768828027126,0.00236498,93024.0,93014.0,0.010757]
[1768828027625,0.00236498,93024.0,93010.0,0.00016122]
[1768828028621,0.00236498,93024.0,93015.0,0.010757]
[1768828029227,0.11975783,93024.0,93013.0,0.010758]
[1768828029833,0.11975783,93024.0,93015.0,0.010757]
[1768828031537,0.11975783,93024.0,93010.0,0.00016122]
[1768828032224,0.11739285,93023.0,93011.0,0.010758]
[1768828037332,0.11739285,93023.0,93012.0,0.010758]
[1768828039037,0.11739285,93023.0,93010.0,0.00016122]
[1768828039038,0.11739285,93023.0,93013.0,0.010758]
[1768828039336,0.11739285,93023.0,93010.0,0.01091922]
[1768828041438,0.11739285,93023.0,93012.0,0.010758]
[1768828042445,0.11739285,93023.0,93015.0,0.010757]
[1768828042731,0.11739285,93023.0,93010.0,0.00016122]
[1768828044637,0.11739285,93023.0,93016.0,0.010757]
[1768828045940,0.11739285,93023.0,93014.0,0.010758]
[1768828047340,0.11739285,93023.0,93010.0,0.00016122]
[1768828047341,0.11739285,93023.0,93016.0,0.010757]
[1768828048039,0.11739285,93023.0,93010.0,0.00016122]
[1768828049444,0.11739285,93023.0,93014.0,0.010757]
[1768828050649,0.11739285,93023.0,93010.0,0.00016122]
[1768828050831,0.11354619,93038.0,93026.0,0.010756]
[1768828051035,0.11354619,93038.0,93019.0,0.20595911]
[1768828051338,0.11354619,93038.0,93026.0,0.010756]
[1768828055148,0.21034619,93042.0,93032.0,0.010755]
[1768828055335,0.21034619,93042.0,93028.0,0.010756]
[1768828055536,0.21034619,93042.0,93029.0,0.010756]
[1768828055743,0.11354619,93041.0,93029.0,0.010756]
[1768828057347,0.11354619,93041.0,93031.0,0.010756]
[1768828058342,0.11354619,93041.0,93028.0,0.010756]
[1768828059542,0.11354619,93041.0,93030.0,0.010756]
[1768828060646,0.11354619,93041.0,93022.0,0.09556238]
[1768828061041,0.11354619,93041.0,93022.0,0.20707225]
[1768828061747,0.00236447,93044.0,93023.0,0.20803745]
[1768828061949,0.11821351,93044.0,93023.0,0.20803745]
[1768828062449,0.11821351,93044.0,93030.0,0.010756]
[1768828063041,0.11584904,93043.0,93028.0,0.010756]
[1768828063548,0.11584904,93041.0,93028.0,0.010756]
[1768828063749,0.11584904,93041.0,93020.0,0.11150987]
[1768828063952,0.11584904,93041.0,93030.0,0.010756]
[1768828065245,0.11584904,93039.0,93018.0,0.09652758]
[1768828066351,0.09240659,93038.0,93027.0,0.010756]
[1768828066649,0.09240659,93038.0,93017.0,0.0968]
[1768828066650,0.11584904,93035.0,93017.0,0.0968]
[1768828067149,0.11584904,93035.0,93020.0,0.18044078]
[1768828067352,0.11584904,93035.0,93017.0,0.0968]
[1768828067555,0.11584904,93035.0,93020.0,0.18044078]
[1768828068144,0.11584904,93032.0,93017.0,0.0968]
[1768828068344,0.11584904,93038.0,93023.0,0.010756]
[1768828068544,0.11584904,93037.0,93023.0,0.010756]
[1768828069353,0.20825563,93037.0,93023.0,0.010756]
[1768828069554,0.11584904,93036.0,93023.0,0.010756]
[1768828070358,0.11584904,93036.0,93020.0,0.18044078]
[1768828070857,0.11584904,93036.0,93021.0,0.0968]
[1768828072558,0.11584904,93036.0,93024.0,0.010756]
[1768828073052,0.11584904,93036.0,93021.0,0.0968]
[1768828073053,0.11584904,93036.0,93025.0,0.010756]
[1768828073253,0.11386594,93041.0,93022.0,0.09265453]
[1768828073559,0.11623041,93044.0,93023.0,0.21031381]
[1768828074264,0.11386594,93043.0,93030.0,0.010756]
[1768828074560,0.11386594,93043.0,93029.0,0.010756]
[1768828077162,0.11386594,93043.0,93030.0,0.010756]
[1768828078169,0.11386594,93043.0,93027.0,0.010756]
[1768828078358,0.00236447,93044.0,93029.0,0.010756]
[1768828078566,0.00236447,93044.0,93030.0,0.18044078]
[1768828078765,0.00236447,93044.0,93033.0,0.010755]
[1768828078966,0.00236447,93044.0,93030.0,0.18044078]
[1768828079163,0.00236447,93044.0,93032.0,0.010755]
[1768828079871,0.00236447,93044.0,93030.0,0.18044078]
[1768828081370,0.11623041,93044.0,93030.0,0.18044078]
[1768828081772,0.11623041,93044.0,93030.0,0.19119678]
[1768828081974,0.11623041,93044.0,93030.0,0.18044078]
[1768828083978,0.00236447,93044.0,93030.0,0.18044078]
[1768828084178,0.00236447,93044.0,93030.0,0.19119678]
[1768828084677,0.00236447,93044.0,93032.0,0.010755]
[1768828086580,0.00236447,93044.0,93036.0,0.010755]
[1768828086770,0.00236447,93044.0,93030.0,0.18044078]
[1768828086971,0.00236447,93044.0,93035.0,0.010755]
[1768828087766,0.11386594,93051.0,93046.0,0.010754]
[1768828087981,0.11386594,93059.0,93046.0,0.010754]
[1768828088184,0.11386594,93059.0,93048.0,0.010754]
[1768828088483,0.0968,93068.0,93048.0,0.010754]
[1768828088484,0.11386594,93063.0,93048.0,0.010754]
[1768828088781,0.13770014,93062.0,93048.0,0.01244811]
[1768828089083,0.11386594,93062.0,93049.0,0.010754]
[1768828090581,0.11386594,93062.0,93050.0,0.18044078]
[1768828090877,0.00236396,93064.0,93052.0,0.010753]
[1768828091185,0.00236396,93064.0,93050.0,0.18044078]
[1768828091387,0.1162294,93084.0,93064.0,0.09265453]
[1768828091575,0.11386594,93083.0,93065.0,0.010752]
[1768828091887,0.01075,93079.0,93064.0,0.09265453]
[1768828092076,0.12461594,93079.0,93060.0,0.0968]
[1768828092384,0.12461594,93077.0,93060.0,0.0968]
[1768828093078,0.11386594,93071.0,93052.0,0.09265453]
[1768828093287,0.11386594,93056.0,93048.0,0.09696122]
[1768828093478,0.11386594,93056.0,93031.0,0.07743481]
[1768828093479,0.11386594,93056.0,93044.0,0.0968]
[1768828094083,0.11386594,93056.0,93044.0,0.10890712]
[1768828094281,0.010754,93049.0,93035.0,0.09265453]
[1768828094582,0.11386594,93047.0,93032.0,0.01224086]
[1768828094775,0.11386594,93047.0,93031.0,0.0968]
[1768828095684,0.11386594,93047.0,93032.0,0.010755]
[1768828097284,0.11386594,93047.0,93032.0,0.02276161]
[1768828099274,0.11386594,93047.0,93032.0,0.01200661]
[1768828099478,0.11386594,93047.0,93031.0,0.0968]
[1768828100383,0.11386594,93047.0,93031.0,0.107556]
[1768828101280,0.11386594,93047.0,93031.0,0.11957897]
[1768828104982,0.11386594,93047.0,93031.0,0.10882297]
[1768828105176,0.12461994,93047.0,93031.0,0.10882297]
[1768828106783,0.11386594,93047.0,93031.0,0.10882297]
[1768828107085,0.11386594,93047.0,93031.0,0.20368866]
[1768828108185,0.00016122,93051.0,93038.0,0.09486569]
[1768828108377,0.00236306,93050.0,93038.0,0.09486569]
[1768828108580,0.00236306,93046.0,93038.0,0.09486569]
[1768828109188,0.00236306,93043.0,93038.0,0.09486569]
[1768828109385,0.00016122,93051.0,93038.0,0.09486569]
[1768828110692,0.00016122,93051.0,93044.0,0.00236447]
[1768828111091,0.00016122,93051.0,93038.0,0.09486569]
[1768828112183,0.00016122,93051.0,93038.0,0.10562069]
[1768828112584,0.00016122,93051.0,93038.0,0.09486569]
[1768828114894,0.00016122,93051.0,93039.0,0.1106601]
[1768828115090,0.00016122,93051.0,93040.0,0.09486569]
[1768828115695,0.010754,93050.0,93040.0,0.09486569]
[1768828116394,0.010754,93048.0,93040.0,0.09486569]
[1768828118399,0.00016122,93051.0,93032.0,0.1106601]
[1768828118590,0.00016122,93051.0,93032.0,0.1214151]
[1768828118591,0.010754,93047.0,93032.0,0.1214151]
[1768828118984,0.00016122,93051.0,93032.0,0.1106601]
[1768828119189,0.00016122,93051.0,93032.0,0.1214151]
[1768828119398,0.010754,93046.0,93032.0,0.1214151]
[1768828120298,0.010754,93046.0,93033.0,0.09700288]
[1768828120496,0.00016122,93051.0,93034.0,0.09700288]
[1768828120702,0.010754,93042.0,93034.0,0.09700288]
[1768828120903,0.010754,93048.0,93034.0,0.09700288]
[1768828121098,0.010754,93041.0,93034.0,0.09700288]
[1768828122006,0.010754,93043.0,93034.0,0.09700288]
[1768828123106,0.010754,93042.0,93034.0,0.09700288]
[1768828123404,0.18044078,93050.0,93034.0,0.09700288]
[1768828124107,0.010754,93043.0,93034.0,0.09700288]
[1768828125408,0.010754,93045.0,93034.0,0.09700288]
[1768828125908,0.010754,93045.0,93034.0,0.10775788]
[1768828126511,0.010754,93045.0,93034.0,0.22641272]
[1768828126809,0.010754,93045.0,93035.0,0.09700288]
[1768828129513,0.010754,93044.0,93035.0,0.09700288]
[1768828131313,0.010754,93042.0,93035.0,0.09700288]
[1768828131611,0.010754,93048.0,93035.0,0.09700288]
[1768828131919,0.010755,93041.0,93035.0,0.09700288]
[1768828133418,0.010754,93043.0,93035.0,0.09700288]
[1768828133607,0.010754,93041.0,93035.0,0.09700288]
[1768828136618,0.11338384,93051.0,93035.0,0.09700288]
[1768828137814,0.010755,93041.0,93035.0,0.09700288]
[1768828138816,0.010754,93049.0,93035.0,0.09700288]
[1768828140123,0.010755,93040.0,93035.0,0.09700288]
[1768828140324,0.010754,93048.0,93035.0,0.09700288]
[1768828141622,0.010755,93038.0,93031.0,0.10982297]
[1768828141822,0.010755,93038.0,93029.0,0.21392445]
[1768828142020,0.010755,93038.0,93029.0,0.22640803]
[1768828142322,0.010754,93048.0,93030.0,0.12551558]
[1768828142714,0.010755,93041.0,93030.0,0.11475958]
[1768828143723,0.010755,93041.0,93030.0,0.21749949]
[1768828143928,0.010754,93044.0,93032.0,0.11475958]
[1768828144336,0.11855219,93051.0,93032.0,0.11475958]
[1768828144533,0.010755,93039.0,93031.0,0.09198391]
[1768828145334,0.010754,93041.0,93031.0,0.09198391]
[1768828145729,0.010754,93041.0,93031.0,0.20674349]
[1768828146227,0.010754,93041.0,93032.0,0.11475958]
[1768828147434,0.010754,93043.0,93032.0,0.20674349]
[1768828147629,0.010754,93043.0,93033.0,0.11475958]
[1768828147830,0.010754,93042.0,93033.0,0.20674349]
[1768828149032,0.010755,93040.0,93033.0,0.20674349]
[1768828149533,0.010754,93043.0,93033.0,0.20674349]
[1768828150145,0.010753,93050.0,93033.0,0.20674349]
[1768828151140,0.010754,93042.0,93033.0,0.20674349]
[1768828151337,0.010755,93041.0,93033.0,0.20674349]
[1768828151741,0.010755,93040.0,93033.0,0.20674349]
[1768828152440,0.010755,93038.0,93033.0,0.20674349]
[1768828153140,0.010755,93038.0,93034.0,0.09198391]
[1768828153735,0.010755,93040.0,93034.0,0.09198391]
[1768828153942,0.010754,93042.0,93034.0,0.09198391]
[1768828154342,0.010755,93041.0,93034.0,0.09198391]
[1768828154536,0.010755,93035.0,93033.0,0.11475958]
[1768828154742,0.010755,93038.0,93033.0,0.11475958]
[1768828155742,0.010755,93039.0,93033.0,0.11475958]
[1768828157141,0.00016122,93051.0,93033.0,0.11475958]
[1768828157543,0.010753,93050.0,93033.0,0.11475958]
[1768828158240,0.010754,93041.0,93033.0,0.11475958]
[1768828158443,0.010755,93040.0,93033.0,0.11475958]
[1768828158841,0.010755,93039.0,93033.0,0.11475958]
[1768828159042,0.010754,93048.0,93033.0,0.11475958]
[1768828159043,0.010755,93037.0,93033.0,0.20674349]
[1768828159247,0.010754,93047.0,93035.0,0.20674349]
[1768828159542,0.010754,93047.0,93036.0,0.11475958]
[1768828160135,0.010755,93040.0,93036.0,0.11475958]
[1768828161848,0.010755,93040.0,93030.0,0.20674349]
[1768828162148,0.010755,93038.0,93031.0,0.11475958]
[1768828162543,0.010755,93040.0,93031.0,0.11475958]
[1768828162749,0.010755,93040.0,93031.0,0.21195749]
[1768828163050,0.00016122,93051.0,93031.0,0.21195749]
[1768828163051,0.00016122,93051.0,93034.0,0.1123597]
[1768828164452,0.010754,93044.0,93034.0,0.1123597]
[1768828166650,0.010754,93049.0,93034.0,0.1123597]
[1768828166851,0.010754,93042.0,93034.0,0.1123597]
[1768828167653,0.010755,93041.0,93034.0,0.1123597]
[1768828168042,0.010754,93048.0,93034.0,0.1123597]
[1768828168351,0.00016122,93051.0,93034.0,0.1123597]
[1768828168554,0.00016122,93051.0,93038.0,0.1123597]
[1768828168742,0.00016122,93051.0,93039.0,0.1123597]
[1768828169353,0.00016122,93051.0,93039.0,0.20955761]
[1768828169651,0.01311596,93064.0,93044.0,0.20955761]
[1768828169838,0.00236346,93084.0,93061.0,0.1123597]
[1768828169839,0.010751,93071.0,93061.0,0.1123597]
[1768828170037,0.010751,93071.0,93040.0,0.28787065]
[1768828170038,0.01075,93077.0,93052.0,0.1123597]
[1768828170248,0.010751,93068.0,93054.0,0.1123597]
[1768828170649,0.010752,93066.0,93054.0,0.1123597]
[1768828171353,0.010751,93075.0,93054.0,0.1123597]
[1768828171541,0.010752,93065.0,93054.0,0.1123597]
[1768828172554,0.010751,93068.0,93054.0,0.1123597]
[1768828173252,0.09401938,93077.0,93054.0,0.1123597]
[1768828173444,0.09401938,93077.0,93056.0,0.1123597]
[1768828174559,0.010751,93070.0,93056.0,0.1123597]
[1768828175350,0.09401938,93077.0,93057.0,0.1123597]
[1768828175855,0.010751,93070.0,93057.0,0.1123597]
[1768828176858,0.010751,93068.0,93057.0,0.1123597]
[1768828177954,0.010752,93061.0,93052.0,0.00016122]
[1768828178164,0.010752,93061.0,93037.0,0.07743481]
[1768828178165,0.010753,93051.0,93045.0,0.09676]
[1768828178353,0.09401938,93054.0,93039.0,0.09676]
[1768828178659,0.09401938,93053.0,93033.0,0.09719791]
[1768828179053,0.09401938,93053.0,93033.0,0.10795291]
[1768828179361,0.010754,93048.0,93033.0,0.10795291]
[1768828179555,0.010754,93048.0,93044.0,0.00236447]
[1768828179954,0.010754,93048.0,93033.0,0.10795291]
[1768828180257,0.010754,93048.0,93035.0,0.12867787]
[1768828181855,0.01091422,93050.0,93035.0,0.12867787]
[1768828182066,0.01091422,93050.0,93036.0,0.12867787]
[1768828182655,0.00016122,93050.0,93036.0,0.11792287]
[1768828183951,0.00016122,93050.0,93039.0,0.010755]
[1768828184955,0.010752,93062.0,93045.0,0.12867687]
[1768828185161,0.010752,93060.0,93045.0,0.12867687]
[1768828185761,0.09676,93060.0,93048.0,0.11792287]
[1768828186062,0.010752,93064.0,93050.0,0.11792287]
[1768828186270,0.09676,93063.0,93050.0,0.11792287]
[1768828186766,0.010752,93067.0,93051.0,0.010753]
[1768828187059,0.09676,93066.0,93051.0,0.12867587]
[1768828187260,0.09676,93066.0,93053.0,0.010753]
[1768828187562,0.09724273,93075.0,93053.0,0.11792287]
[1768828187758,0.010751,93068.0,93055.0,0.11792287]
[1768828188556,0.010751,93071.0,93056.0,0.010753]
[1768828188956,0.18033031,93070.0,93056.0,0.010753]
[1768828189358,0.18033031,93070.0,93058.0,0.010752]
[1768828190066,0.09676,93069.0,93055.0,0.12867587]
[1768828195473,0.19569464,93069.0,93052.0,0.00016122]
[1768828195770,0.00236396,93064.0,93052.0,0.11546772]
[1768828195962,0.00236396,93064.0,93052.0,0.12622072]
[1768828196162,0.00236396,93064.0,93052.0,0.11546772]
[1768828196573,0.00236396,93064.0,93052.0,0.00016122]
[1768828198574,0.010752,93059.0,93045.0,0.1153065]
[1768828198769,0.010752,93059.0,93045.0,0.1260605]
[1768828199464,0.010752,93063.0,93045.0,0.1153065]
[1768828199669,0.18033031,93060.0,93048.0,0.010754]
[1768828200274,0.18033031,93060.0,93045.0,0.1153065]
[1768828200464,0.18033031,93060.0,93047.0,0.1153065]
[1768828201280,0.00236396,93064.0,93055.0,0.010753]
[1768828201771,0.09893464,93075.0,93057.0,0.1153065]
[1768828201961,0.09676,93074.0,93060.0,0.1153065]
[1768828202367,0.09676,93074.0,93062.0,0.010752]
[1768828203368,0.09676,93074.0,93060.0,0.1153065]
[1768828204273,0.09676,93074.0,93056.0,0.1153065]
[1768828204670,0.09676,93074.0,93061.0,0.010752]
[1768828205381,0.01075,93080.0,93064.0,0.1153065]
[1768828205676,0.09676,93077.0,93064.0,0.1153065]
[1768828206079,0.19108031,93080.0,93064.0,0.1153065]
[1768828206278,0.09676,93079.0,93064.0,0.1153065]
[1768828206464,0.01075,93080.0,93066.0,0.010751]
[1768828206669,0.09676,93080.0,93066.0,0.1153065]
[1768828206977,0.09676,93080.0,93070.0,0.010751]
[1768828207164,0.09893464,93082.0,93067.0,0.010751]
[1768828207368,0.09676,93081.0,93069.0,0.010751]
[1768828207570,0.09893464,93082.0,93069.0,0.010751]
[1768828207864,0.09676,93082.0,93071.0,0.010751]
[1768828208070,0.09676,93082.0,93069.0,0.1153065]
[1768828208270,0.10751,93082.0,93066.0,0.010751]
[1768828208670,0.09676,93082.0,93070.0,0.010751]
[1768828209270,0.09676,93082.0,93067.0,0.010751]
[1768828209976,0.01075,93081.0,93067.0,0.010751]
[1768828211380,0.09676,93082.0,93068.0,0.010751]
[1768828212277,0.09676,93082.0,93070.0,0.010751]
[1768828213180,0.10751,93082.0,93066.0,0.1153065]
[1768828213581,0.09676,93082.0,93068.0,0.010751]
[1768828214182,0.09676,93082.0,93066.0,0.1153065]
[1768828214677,0.09676,93082.0,93071.0,0.010751]
[1768828215784,0.09676,93082.0,93067.0,0.1153065]
[1768828216084,0.01075,93083.0,93068.0,0.010751]
[1768828216978,0.01075,93083.0,93070.0,0.010751]
[1768828218383,0.09893464,93083.0,93064.0,0.1153065]
[1768828218583,0.10968464,93083.0,93069.0,0.010751]
[1768828219485,0.09893464,93083.0,93071.0,0.010751]
[1768828220288,0.01075,93082.0,93064.0,0.1153065]
[1768828221282,0.09893464,93083.0,93070.0,0.010751]
[1768828221675,0.09893464,93083.0,93072.0,0.010751]
[1768828222687,0.09893464,93083.0,93070.0,0.010751]
[1768828222888,0.01075,93082.0,93070.0,0.010751]
[1768828223188,0.01075,93082.0,93067.0,0.010751]
[1768828223388,0.01075,93080.0,93067.0,0.010751]
[1768828223589,0.09843381,93080.0,93067.0,0.010751]
[1768828225295,0.10918381,93080.0,93067.0,0.010751]
[1768828225592,0.09843381,93080.0,93069.0,0.010751]
[1768828226888,0.09843381,93080.0,93061.0,0.20752828]
[1768828227093,0.09843381,93080.0,93062.0,0.11452537]
[1768828228188,0.09843381,93080.0,93064.0,0.00236396]
[1768828229387,0.09843381,93080.0,93067.0,0.010751]
[1768828232089,0.10918381,93080.0,93067.0,0.010751]
[1768828232691,0.10918381,93080.0,93064.0,0.00236396]
[1768828232692,0.10918381,93080.0,93068.0,0.010751]
[1768828233899,0.09843381,93080.0,93070.0,0.010751]
[1768828235399,0.09843381,93080.0,93071.0,0.010751]
[1768828237092,0.09843381,93086.0,93070.0,0.18033031]
[1768828237300,0.02310902,93085.0,93078.0,0.01075]
[1768828237499,0.09843381,93086.0,93075.0,0.01075]
[1768828237698,0.02300901,93085.0,93073.0,0.010751]
[1768828237899,0.09843381,93086.0,93073.0,0.010751]
[1768828238109,0.02300963,93085.0,93073.0,0.010751]
[1768828238399,0.09843381,93086.0,93073.0,0.010751]
[1768828238601,0.02300652,93085.0,93073.0,0.010751]
[1768828238800,0.09843381,93086.0,93073.0,0.010751]
[1768828238999,0.02300651,93085.0,93073.0,0.010751]
[1768828239199,0.09843381,93086.0,93073.0,0.010751]
[1768828240903,0.09843381,93086.0,93075.0,0.01075]
[1768828244099,0.09843381,93086.0,93073.0,0.010751]
[1768828245307,0.09155598,93085.0,93072.0,0.010751]
[1768828247404,0.10230498,93085.0,93072.0,0.010751]
[1768828248720,0.09155598,93085.0,93072.0,0.010751]
[1768828249814,0.20065473,93085.0,93072.0,0.010751]
[1768828250015,0.09155598,93084.0,93072.0,0.010751]
[1768828250325,0.09155598,93084.0,93071.0,0.00016122]
[1768828250510,0.10230598,93084.0,93071.0,0.00016122]
[1768828250704,0.09155598,93084.0,93071.0,0.00016122]
[1768828250909,0.09155598,93084.0,93071.0,0.01091222]
[1768828253122,0.10230598,93084.0,93071.0,0.00016122]
[1768828253412,0.09040724,93080.0,93071.0,0.00016122]
[1768828253620,0.09040724,93079.0,93066.0,0.09676]
[1768828254322,0.10115724,93079.0,93066.0,0.09676]
[1768828254507,0.010751,93076.0,93066.0,0.09676]
[1768828254704,0.09040724,93063.0,93046.0,0.07743481]
[1768828255008,0.09040724,93054.0,93044.0,0.00236447]
[1768828255208,0.09040724,93054.0,93044.0,0.01311847]
[1768828255411,0.09040724,93054.0,93046.0,0.010754]
[1768828255602,0.09040724,93054.0,93048.0,0.010754]
[1768828257811,0.09040724,93054.0,93044.0,0.00236447]
[1768828260418,0.09040724,93054.0,93044.0,0.01311847]
[1768828261420,0.09040724,93054.0,93044.0,0.00236447]
[1768828261820,0.11428881,93053.0,93044.0,0.00236447]
[1768828262118,0.09040724,93052.0,93044.0,0.00236447]
[1768828263923,0.09040724,93052.0,93045.0,0.010754]
[1768828264314,0.09040724,93052.0,93044.0,0.00236447]
[1768828266819,0.20469605,93039.0,93023.0,0.07728718]
[1768828267017,0.11428881,93036.0,93023.0,0.010756]
[1768828267218,0.09040724,93035.0,93022.0,0.107517]
[1768828267517,5e-08,93036.0,93028.0,0.010756]
[1768828267721,0.010754,93046.0,93028.0,0.010756]
[1768828269018,0.107513,93056.0,93027.0,0.01520056]
[1768828269216,0.010754,93046.0,93027.0,0.01520056]
[1768828269412,0.107513,93056.0,93027.0,0.01520056]
[1768828269413,0.010754,93044.0,93027.0,0.01520056]
[1768828269616,0.09040724,93041.0,93027.0,0.01520056]
[1768828269924,0.20469605,93041.0,93027.0,0.01520056]
[1768828270326,0.09040724,93037.0,93027.0,0.01520056]
[1768828270719,0.20469605,93041.0,93027.0,0.01520056]
[1768828270915,0.09040724,93040.0,93027.0,0.01520056]
[1768828271121,0.09040724,93039.0,93027.0,0.01520056]
[1768828271321,0.11428881,93038.0,93027.0,0.01520056]
[1768828272227,0.11428881,93038.0,93027.0,0.02595656]
[1768828273533,0.09040724,93039.0,93027.0,0.01520056]
[1768828273733,0.09040724,93039.0,93028.0,0.010756]
[1768828273934,0.09040724,93039.0,93027.0,0.01520056]
[1768828274130,0.11428881,93046.0,93027.0,0.01520056]
[1768828274520,0.11428881,93046.0,93033.0,0.010755]
[1768828275733,0.11428881,93046.0,93029.0,0.010756]
[1768828276126,0.20469605,93045.0,93029.0,0.010756]
[1768828276326,0.11428881,93044.0,93029.0,0.010756]
[1768828276643,0.20469605,93044.0,93029.0,0.010756]
[1768828276944,0.11428881,93043.0,93029.0,0.010756]
[1768828277736,0.11428881,93043.0,93027.0,0.01520056]
[1768828277942,0.11428881,93042.0,93027.0,0.01520056]
[1768828279340,0.11428881,93045.0,93027.0,0.01520056]
[1768828279530,0.20469605,93048.0,93032.0,0.010755]
[1768828279730,0.11428881,93047.0,93032.0,0.010755]
[1768828280243,0.20469605,93047.0,93032.0,0.010755]
[1768828280452,0.11428881,93046.0,93034.0,0.010755]
[1768828280654,0.11428881,93046.0,93027.0,0.01520056]
[1768828281548,0.11428881,93046.0,93032.0,0.010755]
[1768828282247,0.20469605,93046.0,93032.0,0.010755]
[1768828282443,0.11428881,93045.0,93032.0,0.010755]
[1768828284154,0.11428881,93045.0,93030.0,0.010756]
[1768828284962,0.20564499,93045.0,93030.0,0.010756]
[1768828285150,0.11016647,93044.0,93030.0,0.010756]
[1768828285453,0.11016647,93044.0,93027.0,0.01520056]
[1768828285954,0.11016647,93044.0,93032.0,0.010755]
[1768828286659,0.11016647,93044.0,93027.0,0.01520056]
[1768828287960,0.11016647,93043.0,93027.0,0.01520056]
[1768828289561,0.11016647,93043.0,93031.0,0.010756]
[1768828290562,0.09845612,93042.0,93031.0,0.010756]
[1768828290962,0.1196198,93041.0,93031.0,0.010756]
[1768828293466,0.1196198,93041.0,93027.0,0.01520056]
[1768828293467,0.1196198,93041.0,93029.0,0.010756]
[1768828294267,0.21807592,93041.0,93029.0,0.010756]
[1768828294563,0.1196198,93040.0,93030.0,0.010756]
[1768828294964,0.1196198,93040.0,93028.0,0.010756]
[1768828295164,0.1196198,93040.0,93027.0,0.01520056]
[1768828295557,0.1196198,93040.0,93032.0,0.010755]
[1768828296360,0.1196198,93040.0,93027.0,0.01520056]
[1768828297769,0.1196198,93040.0,93035.0,0.010755]
[1768828298171,0.1196198,93040.0,93036.0,0.010755]
[1768828299457,0.1196198,93040.0,93028.0,0.010756]
[1768828299661,8e-07,93040.0,93028.0,0.010756]
[1768828299964,0.00236436,93049.0,93028.0,0.010756]
[1768828301472,0.00236436,93049.0,93034.0,0.010755]
[1768828301769,0.20752547,93048.0,93034.0,0.010755]
[1768828301970,0.00236436,93049.0,93028.0,0.20246977]
[1768828302172,0.00236436,93049.0,93034.0,0.20246977]
[1768828302366,0.0953519,93057.0,93034.0,0.20246977]
[1768828302575,0.0953519,93055.0,93039.0,0.010755]
[1768828302762,0.12913154,93054.0,93039.0,0.010755]
[1768828302963,0.02302664,93053.0,93037.0,0.010755]
[1768828303162,0.02302664,93052.0,93037.0,0.010755]
[1768828303370,0.1061049,93054.0,93037.0,0.010755]
[1768828303573,0.02302578,93053.0,93037.0,0.010755]
[1768828303772,0.02302578,93052.0,93034.0,0.09347293]
[1768828304072,0.05497894,93050.0,93032.0,0.04225567]
[1768828304271,0.05497894,93050.0,93028.0,0.09347293]
[1768828304468,0.05497894,93050.0,93028.0,0.2009478]
[1768828304663,0.05497894,93050.0,93035.0,0.010755]
[1768828304864,0.05497894,93050.0,93037.0,0.010755]
[1768828305472,0.05497894,93048.0,93037.0,0.010755]
[1768828308476,0.05497894,93048.0,93035.0,0.010755]
[1768828310080,0.05497894,93048.0,93032.0,0.04208656]
[1768828310374,0.05497894,93048.0,93036.0,0.010755]
[1768828311177,0.05497894,93048.0,93037.0,0.010755]
[1768828312981,0.09087452,93056.0,93038.0,0.1803853]
[1768828313177,0.00016122,93058.0,93048.0,0.010754]
[1768828313776,0.00016122,93058.0,93046.0,0.010754]
[1768828314090,0.00016122,93058.0,93044.0,0.010754]
[1768828314273,0.05598721,93058.0,93044.0,0.010754]
[1768828314470,0.05598721,93058.0,93041.0,0.010754]
[1768828314767,0.05598721,93058.0,93042.0,0.010754]
[1768828316774,0.05598721,93058.0,93044.0,0.010754]
[1768828316978,0.05598721,93058.0,93046.0,0.010754]
[1768828319577,0.05598721,93058.0,93044.0,0.010754]
[1768828322077,0.05598721,93058.0,93047.0,0.010754]
[1768828322885,0.05598721,93058.0,93040.0,0.1803853]
[1768828323087,0.05598721,93058.0,93052.0,0.010753]
[1768828323487,0.00016122,93058.0,93052.0,0.010753]
[1768828323889,0.05585648,93065.0,93052.0,0.010753]
[1768828324985,0.10162552,93068.0,93046.0,0.00016122]
[1768828324986,0.09087452,93068.0,93058.0,0.010752]
[1768828325186,0.05611866,93069.0,93058.0,0.010752]
[1768828325386,0.05611866,93074.0,93059.0,0.1803853]
[1768828325586,0.09087452,93079.0,93064.0,0.010752]
[1768828325587,0.10758932,93078.0,93064.0,0.010752]
[1768828325788,0.11833932,93078.0,93061.0,0.010752]
[1768828325982,0.05611866,93077.0,93061.0,0.010752]
[1768828326182,0.05611866,93077.0,93063.0,0.010752]
[1768828326383,0.05611866,93077.0,93064.0,0.010752]
[1768828330987,0.05611866,93077.0,93061.0,0.010752]
[1768828331182,0.05147066,93078.0,93062.0,0.09396934]
[1768828331391,0.01311346,93084.0,93067.0,0.1803853]
[1768828331590,0.06879241,93084.0,93066.0,0.09396934]
[1768828331790,0.05567895,93082.0,93065.0,0.010752]
[1768828332295,0.14655347,93082.0,93065.0,0.01091322]
[1768828332487,0.05525516,93081.0,93065.0,0.01091322]
[1768828333895,0.05525516,93077.0,93065.0,0.00016122]
[1768828334085,0.09087452,93076.0,93065.0,0.00016122]
[1768828334288,0.1456938,93081.0,93065.0,0.01091322]